bitfinex/quotes_BTCUSD_20251117
["timestamp","ask_amount","ask_price","bid_price","bid_amount"]
[1763389098585,0.6806076,94579.0,94573.0,0.001]
[1763389098820,0.65600041,94579.0,94569.0,0.0014406]
[1763389099066,0.12876897,94578.0,94569.0,0.0014406]
[1763389099330,0.36641874,94577.0,94569.0,0.0014406]
[1763389099591,0.04341874,94575.0,94569.0,0.0014406]
[1763389099871,0.47058052,94577.0,94569.0,0.0014406]
[1763389099872,0.04341874,94573.0,94569.0,0.0014406]
[1763389100105,0.42427874,94570.0,94569.0,0.0014406]
[1763389100361,0.42427874,94570.0,94531.0,0.002]
[1763389100362,0.36641874,94569.0,94531.0,0.002]
[1763389100626,0.323,94540.0,94531.0,0.002]
[1763389100869,0.6665757,94560.0,94531.0,0.002]
[1763389100870,0.09004,94568.0,94531.0,0.002]
[1763389101115,0.65600041,94550.0,94531.0,0.002]
[1763389101381,0.65600041,94541.0,94531.0,0.002]
[1763389101714,0.10416178,94558.0,94531.0,0.002]
[1763389101715,0.65600041,94550.0,94531.0,0.002]
[1763389101938,0.65600041,94550.0,94531.0,0.00213209]
[1763389102168,0.65600041,94541.0,94531.0,0.00213209]
[1763389102436,0.323,94540.0,94531.0,0.00213209]
[1763389102661,0.06802593,94539.0,94531.0,0.00213209]
[1763389103088,0.42427874,94532.0,94531.0,0.00213209]
[1763389103512,0.51431874,94532.0,94531.0,0.00213209]
[1763389103722,0.51431874,94532.0,94461.0,0.07491908]
[1763389103723,0.04341874,94529.0,94461.0,0.07491908]
[1763389103929,0.65600041,94510.0,94462.0,0.02117253]
[1763389104138,0.12876897,94509.0,94462.0,0.02117253]
[1763389104783,0.65600041,94500.0,94460.0,0.65600041]
[1763389104992,0.65600041,94500.0,94452.0,3.0184]
[1763389105187,0.65600041,94490.0,94440.0,0.65600041]
[1763389105394,0.65600041,94490.0,94452.0,0.2713]
[1763389105607,0.65600041,94490.0,94454.0,0.5684]
[1763389105817,0.10416178,94509.0,94440.0,0.65600041]
[1763389105818,0.08646,94507.0,94440.0,0.65600041]
[1763389106026,0.65600041,94500.0,94460.0,0.65600041]
[1763389106232,0.65600041,94500.0,94461.0,0.02117275]
[1763389106834,0.04341874,94513.0,94461.0,0.02117275]
[1763389106835,0.65600041,94510.0,94470.0,0.65600041]
[1763389107178,0.65600041,94510.0,94471.0,0.02117051]
[1763389107179,0.34760719,94509.0,94471.0,0.02117051]
[1763389107311,0.65600041,94500.0,94471.0,0.02117051]
[1763389107517,0.02460719,94499.0,94472.0,0.02117029]
[1763389107739,0.02460719,94499.0,94454.0,0.0004414]
[1763389107740,0.01711762,94498.0,94454.0,0.0004414]
[1763389107904,0.323,94499.0,94455.0,5.0]
[1763389108101,0.323,94499.0,94461.0,5.0]
[1763389108102,0.02460719,94498.0,94461.0,5.0]
[1763389108300,0.65600041,94500.0,94460.0,0.65700041]
[1763389108301,0.65600041,94500.0,94462.0,0.02117253]
[1763389108579,0.1247393,94540.0,94470.0,0.65600041]
[1763389108580,0.65600041,94510.0,94470.0,0.65600041]
[1763389108778,0.65600041,94500.0,94454.0,0.0004414]
[1763389108900,0.0425,94511.0,94460.0,0.6660004]
[1763389109101,0.6806076,94510.0,94461.0,5.0]
[1763389109314,0.65600041,94510.0,94470.0,0.65600041]
[1763389109560,0.02460719,94509.0,94471.0,0.02117051]
[1763389109774,0.323,94518.0,94471.0,0.02117051]
[1763389110191,0.323,94519.0,94471.0,0.02117051]
[1763389110499,0.01057641,94550.0,94471.0,0.02117051]
[1763389110500,0.6665757,94560.0,94491.0,5.0]
[1763389110728,0.65600041,94540.0,94500.0,0.65600041]
[1763389110941,0.65600041,94550.0,94501.0,5.02116379]
[1763389111154,0.65600041,94550.0,94480.0,0.6660004]
[1763389111155,0.34760719,94549.0,94510.0,0.65600041]
[1763389111360,0.34760719,94549.0,94511.0,0.02116155]
[1763389111361,0.323,94549.0,94511.0,0.02116155]
[1763389111762,0.00033348,94512.0,94511.0,0.02116155]
[1763389112155,0.00033348,94512.0,94500.0,0.65600041]
[1763389112358,0.323,94549.0,94491.0,2.3192]
[1763389112359,0.65600041,94530.0,94491.0,4.0009]
[1763389112573,0.40946,94549.0,94492.0,0.1498]
[1763389112574,0.65600041,94540.0,94492.0,0.1498]
[1763389112851,0.022872,94539.0,94492.0,0.1498]
[1763389113056,0.02299077,94539.0,94511.0,0.002]
[1763389113272,0.02299077,94539.0,94512.0,0.1498]
[1763389113476,0.65613224,94540.0,94512.0,0.1498]
[1763389113686,0.02338464,94539.0,94512.0,0.1498]
[1763389113888,0.02338464,94539.0,94513.0,0.02116111]
[1763389114090,0.02338464,94539.0,94480.0,0.01999998]
[1763389114091,0.65600041,94522.0,94491.0,0.1498]
[1763389114372,0.65613224,94540.0,94500.0,0.65600041]
[1763389114611,0.65613224,94540.0,94501.0,0.02116379]
[1763389114802,0.02460719,94539.0,94501.0,0.02116379]
[1763389115365,0.65613224,94540.0,94501.0,0.02116379]
[1763389115573,0.65613224,94540.0,94492.0,0.1498]
[1763389115574,0.65600041,94530.0,94492.0,0.1498]
[1763389115749,0.65600041,94520.0,94492.0,0.1498]
[1763389115955,0.65600041,94510.0,94466.0,3.0216]
[1763389116160,0.65600041,94510.0,94470.0,0.65600041]
[1763389116640,0.07097068,94509.0,94470.0,0.65600041]
[1763389116850,0.07097068,94509.0,94471.0,0.02117051]
[1763389116851,0.65600041,94500.0,94471.0,0.02117051]
[1763389117056,0.65600041,94500.0,94460.0,0.65600041]
[1763389117271,0.04341874,94523.0,94471.0,0.00013207]
[1763389117481,0.10416178,94509.0,94471.0,0.02130258]
[1763389117696,0.02460719,94508.0,94471.0,0.02130258]
[1763389117908,0.02485722,94509.0,94471.0,0.02130258]
[1763389118334,0.02485722,94509.0,94471.0,0.00830258]
[1763389118564,0.00025003,94509.0,94480.0,0.65600041]
[1763389118780,0.00025003,94509.0,94481.0,0.01544021]
[1763389118781,0.00038181,94509.0,94481.0,0.01544021]
[1763389118999,0.02683431,94509.0,94462.0,0.03768772]
[1763389119214,0.02683431,94509.0,94460.0,0.65600041]
[1763389119215,0.65600041,94500.0,94460.0,0.65600041]
[1763389119432,0.65600041,94500.0,94451.0,0.03968772]
[1763389119433,0.02337937,94499.0,94451.0,0.03968772]
[1763389119668,0.32338181,94509.0,94460.0,0.65600041]
[1763389119900,0.32338181,94509.0,94462.0,0.8347]
[1763389119901,0.02218349,94508.0,94462.0,0.8347]
[1763389120132,0.02218349,94508.0,94464.0,2.2259]
[1763389120365,0.02218349,94508.0,94466.0,1.6373]
[1763389120590,0.02218349,94508.0,94467.0,0.01544547]
[1763389120808,0.323,94506.0,94460.0,0.65600041]
[1763389121023,0.65600041,94500.0,94461.0,0.01544804]
[1763389121234,0.65600041,94500.0,94451.0,0.002]
[1763389121235,0.0171765,94499.0,94456.0,4.4383]
[1763389121446,0.0425,94505.0,94461.0,4.6425]
[1763389121652,0.0425,94505.0,94455.0,0.03768772]
[1763389121653,0.65600041,94500.0,94462.0,0.01544788]
[1763389121829,0.0264553,94499.0,94454.0,0.03768772]
[1763389122058,0.0264553,94499.0,94452.0,0.03768772]
[1763389122059,0.65600041,94490.0,94452.0,0.03768772]
[1763389122284,0.0264581,94489.0,94451.0,0.002]
[1763389122493,0.32338181,94509.0,94460.0,0.65600041]
[1763389122718,0.32338181,94509.0,94453.0,0.1054]
[1763389122719,0.65600041,94490.0,94453.0,0.1054]
[1763389122917,0.65600041,94490.0,94454.0,0.01545375]
[1763389122918,0.0264581,94489.0,94454.0,0.01545375]
[1763389123162,0.323,94499.0,94454.0,0.01545375]
[1763389123381,0.65600041,94500.0,94460.0,0.65600041]
[1763389123555,0.02267924,94499.0,94461.0,0.01544923]
[1763389123756,0.02267924,94499.0,94457.0,0.01544923]
[1763389124236,0.65600041,94480.0,94453.0,0.001]
[1763389124449,0.0264609,94479.0,94453.0,0.001]
[1763389124661,0.0264609,94479.0,94453.0,0.0164561]
[1763389124877,0.65600041,94470.0,94453.0,0.001]
[1763389125088,0.3494637,94469.0,94453.0,0.001]
[1763389125307,0.323,94469.0,94453.0,0.01645788]
[1763389125527,0.323,94469.0,94453.0,0.00189928]
[1763389125738,0.65600041,94470.0,94453.0,0.00189928]
[1763389125969,0.01769175,94469.0,94453.0,0.00189928]
[1763389126169,0.01769175,94469.0,94453.0,0.0004414]
[1763389126361,0.04341874,94482.0,94453.0,0.0004414]
[1763389126586,0.04341874,94478.0,94453.0,0.0004414]
[1763389127030,0.04341874,94483.0,94453.0,0.0004414]
[1763389127266,0.04341874,94478.0,94453.0,0.0004414]
[1763389127473,0.04341874,94476.0,94453.0,0.0004414]
[1763389127671,0.04341874,94476.0,94454.0,0.00145443]
[1763389127672,0.02462849,94475.0,94454.0,0.00145443]
[1763389128213,0.65600041,94480.0,94453.0,0.02243464]
[1763389128623,0.69850041,94490.0,94453.0,0.02143464]
[1763389128823,0.65600041,94480.0,94453.0,0.02143464]
[1763389129184,0.0264609,94479.0,94453.0,0.02143464]
[1763389129608,0.0264609,94479.0,94453.0,0.0004414]
[1763389129609,0.65600041,94470.0,94453.0,0.0004414]
[1763389129838,0.0264637,94469.0,94453.0,0.0004414]
[1763389130259,0.02646146,94477.0,94453.0,0.02012814]
[1763389130872,0.65600041,94470.0,94453.0,0.0004414]
[1763389131080,0.02442675,94469.0,94453.0,0.02161595]
[1763389131241,0.02306891,94477.0,94453.0,0.02161595]
[1763389131865,0.0425,94518.0,94476.0,0.09838]
[1763389132048,0.323,94509.0,94496.0,0.01813]
[1763389132407,0.00377772,94508.0,94496.0,0.01813]
[1763389132544,0.00377772,94509.0,94496.0,0.03796]
[1763389132747,0.00377772,94509.0,94482.0,0.08726]
[1763389132748,0.10416178,94504.0,94482.0,0.08726]
[1763389132951,0.00377772,94503.0,94482.0,0.08726]
[1763389133298,0.00377772,94503.0,94477.0,0.02116917]
[1763389133299,0.65600041,94492.0,94477.0,0.02116917]
[1763389133454,0.00377772,94491.0,94476.0,0.00496]
[1763389134047,0.65600041,94490.0,94476.0,0.00496]
[1763389134273,0.00377772,94489.0,94476.0,0.08584]
[1763389134489,0.65600041,94490.0,94477.0,0.02116917]
[1763389134931,0.323,94499.0,94489.0,0.05478]
[1763389135126,0.00377772,94498.0,94489.0,0.05478]
[1763389135551,0.00377772,94499.0,94489.0,0.05478]
[1763389136157,0.00013178,94503.0,94490.0,0.02116626]
[1763389136158,0.65600041,94500.0,94490.0,0.02116626]
[1763389136372,0.00377772,94499.0,94489.0,0.05478]
[1763389137418,0.10416178,94498.0,94477.0,0.08088]
[1763389137666,0.00377772,94497.0,94477.0,0.08088]
[1763389137792,0.00377772,94497.0,94478.0,0.02116894]
[1763389137993,0.00377772,94498.0,94478.0,0.02116894]
[1763389138226,0.00377772,94498.0,94477.0,0.08088]
[1763389138433,0.00377772,94498.0,94478.0,0.01948574]
[1763389139101,0.06438883,94498.0,94478.0,0.01948574]
[1763389139303,0.00377772,94498.0,94476.0,0.00496]
[1763389139558,0.10416178,94497.0,94476.0,0.00496]
[1763389139765,0.96417496,94490.0,94476.0,0.00496]
[1763389139897,0.00377772,94489.0,94476.0,0.00496]
[1763389140100,0.00377772,94496.0,94476.0,0.00496]
[1763389140296,0.96417496,94490.0,94476.0,0.00496]
[1763389140500,0.00013178,94503.0,94477.0,0.08088]
[1763389140706,0.323,94501.0,94489.0,0.03778]
[1763389140921,0.00013178,94503.0,94502.0,0.0314]
[1763389141155,0.00013178,94503.0,94478.0,0.21368]
[1763389141391,0.96417496,94490.0,94476.0,0.00496]
[1763389141696,0.04384,94477.0,94466.0,0.1498]
[1763389141899,0.04761772,94477.0,94461.0,0.02117275]
[1763389142331,0.04761772,94477.0,94458.0,0.0496398]
[1763389142529,0.04761772,94477.0,94456.0,0.02846637]
[1763389142738,0.04384,94486.0,94456.0,0.02846637]
[1763389142943,0.00377772,94485.0,94460.0,0.02846637]
[1763389143177,0.00377772,94485.0,94461.0,0.04963912]
[1763389143318,0.04384,94500.0,94465.0,0.02846637]
[1763389143319,1.00801496,94500.0,94465.0,0.02846637]
[1763389143527,0.00377772,94494.0,94470.0,0.02846637]
[1763389143840,0.96417496,94490.0,94470.0,0.02846637]
[1763389144089,0.04384,94471.0,94463.0,0.02846637]
[1763389144205,0.96417496,94473.0,94460.0,0.02846637]
[1763389144414,0.96417496,94473.0,94454.0,0.03796]
[1763389144415,0.04384,94470.0,94454.0,0.03796]
[1763389144612,0.96417496,94464.0,94454.0,0.03796]
[1763389144814,0.96417496,94464.0,94450.0,0.02846637]
[1763389144815,0.04384,94455.0,94450.0,0.02846637]
[1763389145040,0.04384,94455.0,94445.0,0.02846637]
[1763389145245,1.05080021,94464.0,94452.0,0.06388]
[1763389145246,0.00253264,94454.0,94452.0,0.06388]
[1763389145449,0.04384,94497.0,94452.0,0.06388]
[1763389145450,0.02826753,94494.0,94465.0,0.323]
[1763389145657,0.01780885,94495.0,94463.0,0.02592]
[1763389145658,0.01508063,94506.0,94488.0,0.03799814]
[1763389145881,0.02826753,94554.0,94481.0,0.37999721]
[1763389145882,0.96417496,94560.0,94529.0,0.03796]
[1763389146170,0.04384,94555.0,94529.0,0.03796]
[1763389146374,0.0831,94554.0,94529.0,0.03796]
[1763389146580,0.96417496,94540.0,94529.0,0.03796]
[1763389146786,0.96417496,94550.0,94529.0,0.03796]
[1763389146954,0.96417496,94550.0,94517.0,0.36099814]
[1763389146955,0.96430681,94540.0,94521.0,0.03796]
[1763389147372,0.00013185,94540.0,94522.0,0.02115909]
[1763389147572,0.00013185,94540.0,94521.0,0.03796]
[1763389147699,0.00013185,94540.0,94521.0,0.01796]
[1763389148306,0.00013185,94540.0,94522.0,0.04388]
[1763389148510,0.00013185,94540.0,94539.0,0.04388]
[1763389148729,0.00013185,94540.0,94528.0,0.02847338]
[1763389148929,0.00013185,94540.0,94529.0,0.02115752]
[1763389149066,0.00013185,94540.0,94520.0,0.02847338]
[1763389149067,0.0831,94539.0,94520.0,0.02847338]
[1763389149270,0.04384,94525.0,94507.0,0.02847338]
[1763389149473,0.04384,94525.0,94504.0,0.02847338]
[1763389149688,0.04384,94525.0,94497.0,0.03799814]
[1763389149689,0.10416178,94515.0,94497.0,0.02847338]
[1763389149887,0.0831,94524.0,94490.0,0.05439338]
[1763389150088,0.0831,94524.0,94491.0,0.02116603]
[1763389150089,0.10416178,94519.0,94491.0,0.02116603]
[1763389150509,0.10416178,94519.0,94490.0,0.05439338]
[1763389150859,0.0831,94518.0,94491.0,0.02116603]
[1763389151101,0.10416178,94519.0,94491.0,0.02116603]
[1763389151514,0.04384,94525.0,94491.0,0.09351941]
[1763389151660,0.10416178,94520.0,94492.0,0.02847338]
[1763389151864,0.10416178,94520.0,94493.0,0.02116558]
[1763389152250,0.10416178,94520.0,94493.0,0.06504558]
[1763389153009,0.323,94536.0,94496.0,0.02847338]
[1763389153186,0.10416178,94528.0,94499.0,0.02847338]
[1763389153419,0.10416178,94528.0,94500.0,0.02116402]
[1763389153622,0.14800178,94527.0,94501.0,0.04388]
[1763389153780,0.14800178,94527.0,94502.0,0.02116357]
[1763389154181,0.14800178,94527.0,94502.0,0.06504357]
[1763389155012,0.02,94526.0,94502.0,0.04388]
[1763389155250,0.10416178,94525.0,94503.0,0.02116334]
[1763389155389,0.02,94524.0,94503.0,0.02116334]
[1763389155954,0.04384,94534.0,94503.0,0.04388]
[1763389156127,0.10416178,94529.0,94503.0,0.06504334]
[1763389156347,0.02,94528.0,94503.0,0.06504334]
[1763389157141,0.0002503,94518.0,94503.0,0.06504334]
[1763389157799,0.0002503,94518.0,94504.0,0.03958]
[1763389158010,0.0002503,94518.0,94517.0,0.03958]
[1763389158215,0.08492,94550.0,94517.0,0.03958]
[1763389158216,0.96417496,94570.0,94521.0,0.323]
[1763389158459,0.96417496,94570.0,94533.0,0.03958]
[1763389158460,0.02,94558.0,94533.0,0.03958]
[1763389158679,0.10416178,94554.0,94534.0,0.0338164]
[1763389158922,0.96417496,94550.0,94522.0,0.01366]
[1763389159147,0.021,94549.0,94523.0,0.02115887]
[1763389159401,0.021,94553.0,94523.0,0.02115887]
[1763389159620,0.002,94559.0,94558.0,0.03958]
[1763389160143,0.002,94559.0,94558.0,0.07916]
[1763389161307,0.002,94559.0,94558.0,0.09614674]
[1763389162200,0.002,94559.0,94558.0,0.07714674]
[1763389162417,0.002,94559.0,94558.0,0.03756674]
[1763389162672,0.002,94559.0,94557.0,0.02592]
[1763389162892,0.002,94559.0,94558.0,0.001]
[1763389163324,0.002,94559.0,94557.0,0.02592]
[1763389163597,0.002,94559.0,94558.0,0.02289]
[1763389163820,0.002,94559.0,94558.0,0.06393103]
[1763389164542,0.002,94559.0,94558.0,0.06493103]
[1763389165398,0.002,94559.0,94558.0,0.06393103]
[1763389166057,0.002,94559.0,94558.0,0.04278]
[1763389166298,0.002,94559.0,94558.0,0.05857049]
[1763389166510,0.002,94559.0,94558.0,0.06408774]
[1763389167064,0.002,94559.0,94558.0,0.06493103]
[1763389167243,0.002,94559.0,94558.0,0.02215103]
[1763389167467,0.002,94559.0,94558.0,0.04178]
[1763389167670,0.002,94559.0,94558.0,0.02189]
[1763389168106,0.002,94559.0,94558.0,0.001]
[1763389168326,0.14719,94559.0,94558.0,0.001]
[1763389168529,0.023,94559.0,94558.0,0.001]
[1763389168938,0.002,94559.0,94532.0,0.01866712]
[1763389169138,0.002,94559.0,94531.0,0.02089]
[1763389169139,0.00313979,94559.0,94558.0,0.001]
[1763389169459,0.00313979,94559.0,94558.0,0.00013185]
[1763389170246,0.00313979,94559.0,94558.0,0.02102185]
[1763389170961,0.00313979,94559.0,94558.0,0.00013185]
[1763389171750,0.00313979,94559.0,94558.0,0.00113185]
[1763389172381,0.00313979,94559.0,94558.0,0.00013185]
[1763389172732,0.14832979,94559.0,94558.0,0.00013185]
[1763389173153,0.51474853,94559.0,94558.0,0.00013185]
[1763389173353,0.36641874,94558.0,94522.0,0.01366]
[1763389173585,0.323,94538.0,94522.0,0.01366]
[1763389173754,0.323,94538.0,94515.0,0.02102]
[1763389173755,0.02644467,94537.0,94515.0,0.02102]
[1763389173958,0.06758467,94537.0,94515.0,0.02102]
[1763389175516,0.06660099,94537.0,94515.0,0.02102]
[1763389175715,0.02546099,94537.0,94516.0,0.02116043]
[1763389176120,0.02546099,94537.0,94517.0,0.02102]
[1763389176326,0.96417496,94550.0,94518.0,0.02115999]
[1763389176327,0.02644355,94541.0,94518.0,0.02115999]
[1763389176550,0.10416178,94534.0,94518.0,0.02115999]
[1763389176755,0.02006548,94533.0,94518.0,0.02115999]
[1763389176958,0.04341874,94547.0,94516.0,0.02116043]
[1763389177184,0.04341874,94545.0,94516.0,0.02116043]
[1763389177386,0.02644271,94544.0,94516.0,0.04951657]
[1763389177606,0.323,94546.0,94516.0,0.04951657]
[1763389177607,0.0262815,94545.0,94517.0,0.02835614]
[1763389177792,0.0262815,94545.0,94515.0,0.02102]
[1763389177793,0.04341874,94556.0,94519.0,0.02835614]
[1763389177998,0.10416178,94544.0,94519.0,0.02835614]
[1763389178168,0.10416178,94544.0,94515.0,0.02102]
[1763389178169,0.04341874,94539.0,94518.0,0.02835614]
[1763389178492,0.04341874,94539.0,94515.0,0.02102]
[1763389178493,0.10416178,94528.0,94515.0,0.02102]
[1763389178870,0.00363786,94527.0,94515.0,0.02102]
[1763389179061,0.00025027,94527.0,94516.0,0.06532043]
[1763389179255,0.00025027,94527.0,94517.0,0.02835614]
[1763389179459,0.00025027,94527.0,94516.0,0.07251614]
[1763389179657,0.00038222,94527.0,94516.0,0.07251614]
[1763389179858,0.00038222,94527.0,94517.0,0.02116021]
[1763389180283,0.00038222,94527.0,94526.0,0.04416]
[1763389180850,0.00038222,94527.0,94526.0,0.08832]
[1763389181990,0.00038222,94527.0,94526.0,0.58227819]
[1763389182212,0.00038222,94527.0,94526.0,0.56112]
[1763389182945,0.10193963,94586.0,94526.0,0.56112]
[1763389182946,0.96417496,94600.0,94531.0,0.04341874]
[1763389183157,0.00213202,94559.0,94558.0,0.0673]
[1763389183365,0.00213202,94559.0,94558.0,0.41145103]
[1763389183578,0.00207596,94559.0,94558.0,0.3313]
[1763389184622,0.00207596,94559.0,94558.0,0.0083]
[1763389184830,0.00207596,94559.0,94558.0,0.02945103]
[1763389186405,0.00207596,94559.0,94558.0,0.0083]
[1763389186628,0.00207596,94559.0,94558.0,0.03145103]
[1763389187013,0.00207596,94559.0,94558.0,0.03245103]
[1763389187665,0.00207596,94559.0,94558.0,0.04614368]
[1763389188098,0.00207596,94559.0,94558.0,0.04714368]
[1763389188331,0.00207596,94559.0,94558.0,0.06829471]
[1763389188469,0.00207596,94559.0,94558.0,0.0093]
[1763389188674,0.0029655,94559.0,94558.0,0.0093]
[1763389188871,0.0029655,94559.0,94558.0,0.03045103]
[1763389189960,0.0029655,94559.0,94558.0,0.02945103]
[1763389190206,0.0029655,94559.0,94558.0,0.03045103]
[1763389190438,0.0029655,94559.0,94558.0,0.002]
[1763389190657,0.0029655,94559.0,94558.0,0.001]
[1763389191111,0.0029655,94559.0,94558.0,0.002]
[1763389192530,0.0029655,94559.0,94558.0,0.07885298]
[1763389192731,0.01508759,94598.0,94567.0,0.1468345]
[1763389192893,0.323,94595.0,94571.0,0.02835496]
[1763389193093,0.01508759,94594.0,94572.0,0.0211479]
[1763389193326,0.13153896,94594.0,94569.0,0.02835496]
[1763389193472,0.10416178,94581.0,94568.0,0.17518946]
[1763389193689,0.04114,94569.0,94568.0,0.1468345]
[1763389193904,0.01508759,94580.0,94568.0,0.1468345]
[1763389194202,0.04114,94587.0,94569.0,0.02114857]
[1763389194203,0.01508759,94586.0,94569.0,0.02114857]
[1763389194962,0.01552757,94586.0,94569.0,0.02114857]
[1763389195343,0.10416178,94581.0,94569.0,0.02114857]
[1763389195548,0.97926255,94580.0,94559.0,0.02835496]
[1763389195726,0.97926255,94580.0,94530.0,1.11100946]
[1763389195727,0.01508759,94579.0,94558.0,0.02835496]
[1763389195930,0.01508759,94579.0,94557.0,0.02835496]
[1763389196505,0.01508759,94579.0,94558.0,0.01962074]
[1763389196694,0.10416178,94581.0,94554.0,0.04950689]
[1763389196695,0.01508759,94580.0,94554.0,0.04950689]
[1763389196890,0.01508759,94580.0,94554.0,0.02835496]
[1763389196891,0.65629849,94570.0,94554.0,0.02835496]
[1763389197049,0.01508759,94569.0,94554.0,0.02835496]
[1763389197254,0.01508759,94579.0,94554.0,0.02835496]
[1763389197460,0.01508759,94579.0,94555.0,0.02835496]
[1763389197686,0.09728759,94579.0,94554.0,0.00135496]
[1763389197863,0.18310637,94579.0,94554.0,0.00135496]
[1763389198060,0.42028759,94579.0,94554.0,0.00135496]
[1763389198266,0.10416178,94566.0,94548.0,0.1468345]
[1763389198836,0.10416178,94566.0,94545.0,0.03780662]
[1763389199040,0.10416178,94566.0,94520.0,0.76046027]
[1763389199041,0.00025005,94568.0,94546.0,0.02115372]
[1763389199254,0.00025005,94568.0,94544.0,0.03780662]
[1763389199425,0.00025005,94568.0,94542.0,0.02115461]
[1763389199426,0.00025005,94568.0,94545.0,0.05896056]
[1763389199659,0.00025005,94568.0,94545.0,0.02115394]
[1763389199863,0.00025005,94568.0,94546.0,0.03780662]
[1763389200063,0.00025005,94568.0,94547.0,0.0211535]
[1763389200488,0.00025005,94568.0,94550.0,0.65629849]
[1763389200721,0.00025005,94568.0,94532.0,0.323]
[1763389200722,0.10416178,94567.0,94549.0,0.03780662]
[1763389200929,0.00025005,94568.0,94544.0,0.03780662]
[1763389200930,0.01508759,94566.0,94544.0,0.03780662]
[1763389201149,0.10416178,94565.0,94545.0,0.02115394]
[1763389201349,0.01508759,94564.0,94546.0,0.02115372]
[1763389201559,0.00025005,94568.0,94542.0,0.02115461]
[1763389201784,0.10416178,94565.0,94542.0,0.02115461]
[1763389201989,0.01508759,94564.0,94542.0,0.05896123]
[1763389202180,0.01508759,94565.0,94542.0,0.05896123]
[1763389202385,0.10416178,94564.0,94542.0,0.05896123]
[1763389202504,0.01508759,94563.0,94542.0,0.02115461]
[1763389202705,0.01503605,94563.0,94542.0,0.02115461]
[1763389203556,0.01503605,94563.0,94547.0,0.001]
[1763389203961,0.01503605,94563.0,94541.0,0.03780662]
[1763389204442,0.01503605,94563.0,94526.0,0.323]
[1763389204443,0.10416178,94549.0,94539.0,0.03780662]
[1763389204642,0.10416178,94549.0,94529.0,0.01851577]
[1763389204643,0.01503605,94548.0,94529.0,0.01851577]
[1763389204894,0.01503605,94548.0,94528.0,0.323]
[1763389205298,0.07754963,94547.0,94528.0,0.323]
[1763389205525,0.65629849,94540.0,94503.0,0.0756026]
[1763389205676,0.10416178,94549.0,94487.0,0.13383204]
[1763389205677,0.65629849,94530.0,94504.0,0.1468345]
[1763389205881,0.01503605,94529.0,94505.0,0.0211629]
[1763389206086,0.65629849,94530.0,94505.0,0.0211629]
[1763389206292,0.04009,94539.0,94505.0,0.0211629]
[1763389206293,0.01503605,94529.0,94505.0,0.0211629]
[1763389206489,0.01503605,94538.0,94504.0,0.1468345]
[1763389206692,0.01503605,94538.0,94495.0,0.1468345]
[1763389206693,0.65629849,94530.0,94495.0,0.1468345]
[1763389206961,0.01503605,94529.0,94495.0,0.1468345]
[1763389207380,0.65629849,94520.0,94483.0,0.0756026]
[1763389207601,0.65629849,94520.0,94480.0,0.65629849]
[1763389207602,0.01503605,94519.0,94484.0,0.0211676]
[1763389207807,0.65629849,94520.0,94484.0,0.0211676]
[1763389208012,0.97929849,94530.0,94484.0,0.0211676]
[1763389208218,0.01303605,94529.0,94484.0,0.0211676]
[1763389208431,0.65629849,94520.0,94484.0,0.0211676]
[1763389208643,0.65629849,94520.0,94485.0,0.02116738]
[1763389208847,0.65629849,94520.0,94492.0,0.02116581]
[1763389209064,0.64499849,94510.0,94470.0,0.0756026]
[1763389209271,0.10416178,94516.0,94463.0,0.0756026]
[1763389209488,0.65629849,94510.0,94460.0,0.73190109]
[1763389209700,0.10416178,94512.0,94450.0,0.0004]
[1763389209701,0.04009,94492.0,94450.0,0.0004]
[1763389210129,0.08281,94492.0,94450.0,0.0004]
[1763389210309,0.00010222,94492.0,94460.0,0.65629849]
[1763389210542,0.00010222,94492.0,94461.0,0.34417275]
[1763389210757,0.00010222,94492.0,94461.0,0.323]
[1763389210961,0.13352222,94492.0,94450.0,0.0004]
[1763389211167,0.17694096,94492.0,94450.0,0.0004]
[1763389211374,0.04352096,94492.0,94450.0,0.0004]
[1763389211524,0.04352096,94492.0,94451.0,0.023175]
[1763389211928,0.00010222,94492.0,94452.0,0.02117477]
[1763389212285,0.05132222,94492.0,94451.0,0.325]
[1763389212496,0.17694096,94492.0,94451.0,0.002]
[1763389212710,0.04341874,94489.0,94451.0,0.002]
[1763389212942,0.65629849,94470.0,94451.0,0.002]
[1763389213163,0.10416178,94471.0,94451.0,0.002]
[1763389213366,0.65629849,94461.0,94451.0,0.002]
[1763389213826,0.04009,94469.0,94451.0,0.002]
[1763389214048,0.02057864,94530.0,94451.0,0.002]
[1763389214049,0.65629849,94480.0,94451.0,0.002]
[1763389214263,0.10416178,94478.0,94451.0,0.023175]
[1763389214471,0.10416178,94478.0,94451.0,0.002]
[1763389214675,0.65629849,94461.0,94451.0,0.0024414]
[1763389214885,0.36641874,94477.0,94451.0,0.0024414]
[1763389215093,0.10416178,94460.0,94451.0,0.0024414]
[1763389215522,0.10416178,94459.0,94451.0,0.0024414]
[1763389216252,0.09131,94452.0,94451.0,0.0024414]
[1763389216666,0.53992874,94452.0,94451.0,0.0024414]
[1763389216893,0.53992874,94452.0,94451.0,0.0034414]
[1763389217110,0.36641874,94451.0,94450.0,0.0004]
[1763389217324,0.5002779,94451.0,94450.0,0.0004]
[1763389217889,0.51988698,94451.0,94430.0,0.0004]
[1763389218146,0.19568178,94431.0,94430.0,0.0004]
[1763389218376,0.21529086,94431.0,94430.0,0.0004]
[1763389218569,0.63931995,94431.0,94430.0,0.0004]
[1763389218771,0.6612096,94431.0,94430.0,0.0004]
[1763389220596,0.5817096,94431.0,94430.0,0.0004]
[1763389221177,0.6612096,94431.0,94430.0,0.0004]
[1763389222192,0.5817096,94431.0,94430.0,0.0004]
[1763389222598,0.5290496,94431.0,94430.0,0.0004]
[1763389222805,0.6612096,94431.0,94430.0,0.0004]
[1763389223011,0.36641874,94430.0,94420.0,0.0004]
[1763389223224,0.09607874,94421.0,94420.0,0.0004]
[1763389223436,0.01960908,94421.0,94420.0,0.0004]
[1763389223649,0.04341874,94427.0,94420.0,0.0004]
[1763389223852,0.05266,94421.0,94420.0,0.0004]
[1763389224269,0.323,94426.0,94420.0,0.00053202]
[1763389224572,0.01952064,94425.0,94420.0,0.00053202]
[1763389224773,0.01952064,94424.0,94420.0,0.00053202]
[1763389224972,0.36641874,94429.0,94420.0,0.00053202]
[1763389225197,0.04341874,94427.0,94420.0,0.00053202]
[1763389225398,0.01952042,94426.0,94420.0,0.00053202]
[1763389226823,0.05406,94421.0,94420.0,0.00053202]
[1763389227091,0.323,94426.0,94420.0,0.00053202]
[1763389227266,0.01952588,94425.0,94420.0,0.00053202]